fUSD/lending_fUSD_20240103
["ID","MTS","AMOUNT","RATE_DAILY","PERIOD"]
[309975123,1704250248051,-522.64673349,0.00032876,2]
[309975124,1704250248062,-1691.33,0.00032876,2]
[309975125,1704250248072,-235.3670968,0.00032876,2]
[309975126,1704250248082,-1691.33,0.00032876,2]
[309975127,1704250248091,-500.0,0.00032876,2]
[309975128,1704250248101,-1691.33,0.00032876,2]
[309975129,1704250248111,-610.43841174,0.00032876,2]
[309975130,1704250248121,-1691.33,0.00032876,2]
[309975131,1704250248131,-547.62585621,0.00032876,2]
[309975132,1704250248141,-530.02903747,0.00032876,2]
[309975133,1704250248151,-500.0,0.00032876,2]
[309975134,1704250248161,-500.0,0.00032876,2]
[309975135,1704250248171,-500.0,0.00032876,2]
[309975136,1704250248181,-500.0,0.00032876,2]
[309975137,1704250248190,-241.72880171,0.00032876,2]
[309975138,1704250248200,-500.0,0.00032876,2]
[309975139,1704250248210,-500.0,0.00032876,2]
[309975140,1704250248219,-500.0,0.00032876,2]
[309975141,1704250248229,-252.41707302,0.00032876,2]
[309975142,1704250248241,-500.0,0.00032876,2]
[309975143,1704250248255,-558.9369043,0.00032876,2]
[309975144,1704250248278,-500.0,0.00032876,2]
[309975145,1704250248292,-500.0,0.00032876,2]
[309975146,1704250248303,-150.09072204,0.00032876,2]
[309975147,1704250248312,-500.0,0.00032876,2]
[309975148,1704250248322,-500.0,0.00032876,2]
[309975149,1704250248332,-500.0,0.00032876,2]
[309975150,1704250248342,-500.0,0.00032876,2]
[309975151,1704250248351,-500.0,0.00032876,2]
[309975152,1704250248362,-500.0,0.00032876,2]
[309975153,1704250248371,-500.0,0.00032876,2]
[309975154,1704250248381,-262.62065361,0.00032876,2]
[309975155,1704250248391,-509.87751807,0.00032876,2]
[309975156,1704250248401,-641.93105997,0.00032876,2]
[309975157,1704250248411,-1223.85,0.00032876,2]
[309975158,1704250248421,-332.06406852,0.00032876,2]
[309975159,1704250248431,-1223.85,0.00032876,2]
[309975160,1704250248441,-1223.85,0.00032876,2]
[309975161,1704250248450,-500.0,0.00032876,2]
[309975162,1704250248460,-500.0,0.00032876,2]
[309975163,1704250248470,-500.0,0.00032876,2]
[309975164,1704250248479,-560.05393851,0.00032876,2]
[309975165,1704250248489,-500.0,0.00032876,2]
[309975166,1704250248499,-500.0,0.00032876,2]
[309975167,1704250248509,-500.0,0.00032876,2]
[309975168,1704250248518,-500.0,0.00032876,2]
[309975169,1704250248528,-265.40765449,0.00032876,2]
[309975170,1704250248537,-500.0,0.00032876,2]
[309975171,1704250248547,-513.82093518,0.00032876,2]
[309975172,1704250248558,-500.0,0.00032876,2]
[309975173,1704250248569,-617.85217193,0.00032876,2]
[309975174,1704250248580,-500.0,0.00032876,2]
[309975175,1704250248589,-500.0,0.00032876,2]
[309975176,1704250248598,-500.0,0.00032876,2]
[309975177,1704250248608,-500.0,0.00032876,2]
[309975178,1704250248619,-185.62478777,0.00032876,2]
[309975179,1704250248629,-197.41289955,0.00032876,2]
[309975180,1704250248639,-500.0,0.00032876,2]
[309975181,1704250248648,-500.0,0.00032876,2]
[309975182,1704250248659,-500.0,0.00032876,2]
[309975183,1704250248668,-500.0,0.00032876,2]
[309975184,1704250248677,-500.0,0.00032876,2]
[309975185,1704250248687,-500.0,0.00032876,2]
[309975186,1704250248706,-500.0,0.00032876,2]
[309975187,1704250248717,-500.0,0.00032876,2]
[309975188,1704250248726,-520.41458278,0.00032876,2]
[309975189,1704250248736,-260.73169648,0.00032876,2]
[309975190,1704250248746,-500.0,0.00032876,2]
[309975191,1704250248755,-500.0,0.00032876,2]
[309975192,1704250248764,-500.0,0.00032876,2]
[309975193,1704250248774,-500.0,0.00032876,2]
[309975194,1704250248783,-500.0,0.00032876,2]
[309975195,1704250248792,-500.0,0.00032876,2]
[309975196,1704250248802,-236.18742895,0.00032876,2]
[309975197,1704250248811,-500.0,0.00032876,2]
[309975198,1704250248821,-500.0,0.00032876,2]
[309975199,1704250248832,-250.58798427,0.00032876,2]
[309975200,1704250248842,-500.0,0.00032876,2]
[309975201,1704250248851,-253.86459007,0.00032876,2]
[309975202,1704250248861,-508.36319366,0.00032876,2]
[309975203,1704250248871,-306.79421885,0.00032876,2]
[309975204,1704250248882,-500.0,0.00032876,2]
[309975205,1704250248892,-500.0,0.00032876,2]
[309975206,1704250248903,-500.0,0.00032876,2]
[309975207,1704250248912,-500.0,0.00032876,2]
[309975208,1704250248922,-500.0,0.00032876,2]
[309975209,1704250248932,-618.70369197,0.00032876,2]
[309975210,1704250248942,-623.03402687,0.00032876,2]
[309975211,1704250248951,-150.66473387,0.00032876,2]
[309975212,1704250248962,-507.88745922,0.00032876,2]
[309975213,1704250248971,-554.67122311,0.00032876,2]
[309975214,1704250248981,-500.0,0.00032876,2]
[309975215,1704250248991,-500.0,0.00032876,2]
[309975216,1704250249001,-500.0,0.00032876,2]
[309975217,1704250249010,-352.83300781,0.00032876,2]
[309975218,1704250249020,-500.0,0.00032876,2]
[309975219,1704250249029,-500.0,0.00032876,2]
[309975220,1704250249038,-500.0,0.00032876,2]
[309975221,1704250249295,-431.02376642,0.00032876,2]
[309975222,1704250249304,-500.0,0.00032876,2]
[309975223,1704250249313,-500.0,0.00032876,2]
[309975224,1704250249323,-500.0,0.00032876,2]
[309975225,1704250249332,-500.0,0.00032876,2]
[309975226,1704250249341,-504.46895292,0.00032876,2]
[309975227,1704250249351,-500.0,0.00032876,2]
[309975228,1704250249361,-500.0,0.00032876,2]
[309975229,1704250249370,-500.0,0.00032876,2]
[309975230,1704250249379,-500.0,0.00032876,2]
[309975231,1704250249389,-550.460717,0.00032876,2]
[309975232,1704250249400,-183.9670458,0.00032876,2]
[309975233,1704250249411,-500.0,0.00032876,2]
[309975234,1704250249421,-500.0,0.00032876,2]
[309975235,1704250249430,-500.0,0.00032876,2]
[309975236,1704250249439,-190.99333158,0.00032876,2]
[309975237,1704250249448,-641.60296384,0.00032876,2]
[309975238,1704250249458,-500.0,0.00032876,2]
[309975239,1704250249467,-500.0,0.00032876,2]
[309975240,1704250249476,-500.0,0.00032876,2]
[309975241,1704250249485,-450.16202504,0.00032876,2]
[309975242,1704250249495,-500.0,0.00032876,2]
[309975243,1704250249504,-500.0,0.00032876,2]
[309975244,1704250249513,-500.0,0.00032876,2]
[309975245,1704250249523,-500.0,0.00032876,2]
[309975246,1704250249532,-500.0,0.00032876,2]
[309975247,1704250249541,-280.02825394,0.00032876,2]
[309975248,1704250249551,-508.9171227,0.00032876,2]
[309975249,1704250249561,-500.0,0.00032876,2]
[309975250,1704250249570,-500.0,0.00032876,2]
[309975251,1704250249580,-429.17190319,0.00032876,2]
[309975252,1704250249589,-500.0,0.00032876,2]
[309975253,1704250249599,-338.79464035,0.00032876,2]
[309975254,1704250249609,-500.0,0.00032876,2]
[309975255,1704250249618,-500.0,0.00032876,2]
[309975256,1704250249628,-500.0,0.00032876,2]
[309975257,1704250249637,-500.0,0.00032876,2]
[309975258,1704250249647,-500.0,0.00032876,2]
[309975259,1704250249656,-500.0,0.00032876,2]
[309975260,1704250249665,-500.0,0.00032876,2]
[309975261,1704250249674,-500.0,0.00032876,2]
[309975262,1704250249684,-500.0,0.00032876,2]
[309975263,1704250249693,-500.0,0.00032876,2]
[309975264,1704250249702,-500.0,0.00032876,2]
[309975265,1704250249712,-500.0,0.00032876,2]
[309975266,1704250249723,-500.0,0.00032876,2]
[309975267,1704250249733,-608.02738102,0.00032876,2]
[309975268,1704250249744,-500.0,0.00032876,2]
[309975269,1704250249754,-500.0,0.00032876,2]
[309975270,1704250249765,-2722.94,0.00032876,2]
[309975271,1704250249775,-500.0,0.00032876,2]
[309975272,1704250249784,-500.0,0.00032876,2]
[309975273,1704250249793,-2722.94,0.00032876,2]
[309975274,1704250249802,-2722.94,0.00032876,2]
[309975275,1704250249812,-803.97,0.00032876,2]
[309975276,1704250249821,-803.97,0.00032876,2]
[309975277,1704250249830,-803.97,0.00032876,2]
[309975278,1704250249840,-803.97,0.00032876,2]
[309975279,1704250249849,-500.0,0.00032876,2]
[309975280,1704250249858,-500.0,0.00032876,2]
[309975281,1704250249867,-500.0,0.00032876,2]
[309975282,1704250249877,-500.0,0.00032876,2]
[309975283,1704250249886,-2000.0,0.00032876,2]
[309975284,1704250249895,-306.478962,0.00032876,2]
[309975285,1704250249904,-200.0,0.00032876,2]
[309975286,1704250249913,-500.0,0.00032876,2]
[309975287,1704250249922,-500.0,0.00032876,2]
[309975288,1704250249932,-500.0,0.00032876,2]
[309975289,1704250249941,-500.0,0.00032876,2]
[309975290,1704250249950,-500.0,0.00032876,2]
[309975291,1704250249959,-500.0,0.00032876,2]
[309975292,1704250249968,-500.0,0.00032876,2]
[309975293,1704250249977,-500.0,0.00032876,2]
[309975294,1704250249986,-500.0,0.00032876,2]
[309975295,1704250249995,-500.0,0.00032876,2]
[309975296,1704250250004,-500.0,0.00032876,2]
[309975297,1704250250014,-500.0,0.00032876,2]
[309975298,1704250250023,-500.0,0.00032876,2]
[309975299,1704250250032,-354.96772715,0.00032876,2]
[309975300,1704250250041,-546.85857614,0.00032876,2]
[309975301,1704250250050,-156.53942,0.00032876,2]
[309975302,1704250250060,-603.78986655,0.00032876,2]
[309975303,1704250250070,-500.0,0.00032876,2]
[309975304,1704250250079,-152.00566144,0.00032876,2]
[309975305,1704250250088,-500.0,0.00032876,2]
[309975306,1704250250098,-500.0,0.00032876,2]
[309975307,1704250250107,-500.0,0.00032876,2]
[309975308,1704250250116,-535.31,0.00032876,2]
[309975309,1704250250126,-535.31,0.00032876,2]
[309975310,1704250250135,-535.31,0.00032876,2]
[309975311,1704250250145,-535.31,0.00032876,2]
[309975312,1704250250154,-500.0,0.00032876,2]
[309975313,1704250250163,-267.47049773,0.00032876,2]
[309975314,1704250250172,-249.87506328,0.00032876,2]
[309975315,1704250250182,-329.65261083,0.00032876,2]
[309975316,1704250250191,-276.13,0.00032877,15]
[309975317,1704250250201,-333.40103,0.00032898,2]
[309975318,1704250250210,-500.0,0.00032899,2]
[309975319,1704250250220,-600.0,0.000329,12]
[309975320,1704250250229,-61264.04,0.000329,2]
[309975321,1704250250239,-151.0,0.000329,7]
[309975322,1704250250249,-231.11,0.000329,2]
[309975323,1704250250260,-24018.4065592,0.0003299,4]
[309975324,1704250250269,-333.40103,0.00032998,2]
[309975325,1704250250279,-6114.63330553,0.00033,2]
[309975326,1704250250288,-39670.0,0.00033,2]
[309975327,1704250250298,-1860.0,0.00033,6]
[309975328,1704250250308,-221.49148019,0.00033,34]
[309975329,1704250250317,-765.52422155,0.00033,2]
[309975330,1704250250327,-333.40103,0.00033098,2]
[309975331,1704250250336,-296.158736,0.00033098,7]
[309975332,1704250250346,-333.40103,0.00033198,2]
[309975333,1704250250355,-2000.0,0.00033205,2]
[309975334,1704250250368,-200.0,0.00033205,2]
[309975335,1704250250378,-150.0,0.0003326,2]
[309975336,1704250250388,-150.0,0.0003326,2]
[309975337,1704250250397,-150.0,0.0003326,2]
[309975338,1704250250407,-150.0,0.0003326,2]
[309975339,1704250250417,-150.0,0.0003326,2]
[309975340,1704250250426,-267.79,0.0003326,2]
[309975341,1704250250436,-191.27,0.00033273,2]
[309975342,1704250250446,-153.84,0.00033292,2]
[309975343,1704250250455,-333.40103,0.00033298,2]
[309975344,1704250250465,-342.0,0.000333,2]
[309975345,1704250250475,-154.21,0.00033347,2]
[309975346,1704250250484,-160.57182686,0.00033359,5]
[309975347,1704250250493,-333.40103,0.00033398,2]
[309975348,1704250250502,-333.40103,0.00033498,2]
[309975349,1704250250512,-4003.06775986,0.00033572,5]
[309975350,1704250250521,-2361.759571,0.00033582,2]
[309975351,1704250250530,-217.513187,0.00033582,2]
[309975352,1704250250540,-155.893052,0.00033582,2]
[309975353,1704250250549,-179.735954,0.00033582,2]
[309975354,1704250250559,-333.40103,0.00033598,2]
[309975355,1704250250568,-160.57182686,0.00033651,5]
[309975356,1704250250578,-333.40103,0.00033698,2]
[309975357,1704250250587,-196.00382279,0.00033781,7]
[309975358,1704250250596,-333.40103,0.00033798,2]
[309975359,1704250250606,-996.0,0.000338,3]
[309975360,1704250250614,-152.0,0.00033804,3]
[309975361,1704250250624,-153.84,0.00033808,2]
[309975362,1704250250633,-3072.41,0.00033844,2]
[309975363,1704250250643,-8006.13551972,0.00033889,6]
[309975364,1704250250652,-4003.06775986,0.0003389,6]
[309975365,1704250250661,-333.40103,0.00033898,2]
[309975366,1704250250670,-1720.88,0.00033899,2]
[309975367,1704250250680,-588.0,0.00033899,2]
[309975368,1704250250689,-500.0,0.00033899,2]
[309975369,1704250250699,-500.0,0.00033899,2]
[309975370,1704250250708,-500.0,0.00033899,2]
[309975371,1704250250718,-500.0,0.00033899,2]
[309975372,1704250250727,-222.08098459,0.00033899,2]
[309975373,1704250250737,-500.0,0.00033899,2]
[309975374,1704250250746,-1223.85,0.00033899,2]
[309975375,1704250250755,-500.0,0.00033899,2]
[309975376,1704250250764,-500.0,0.00033899,2]
[309975377,1704250250774,-500.0,0.00033899,2]
[309975378,1704250250783,-500.0,0.00033899,2]
[309975379,1704250250793,-8546.39346099,0.000339,2]
[309975380,1704250250802,-150.03538363,0.000339,2]
[309975381,1704250250811,-160.57182686,0.00033942,6]
[309975382,1704250250820,-250.35,0.00033963,2]
[309975383,1704250250829,-4003.06775986,0.00033987,6]
[309975384,1704250250838,-8006.13551972,0.00033989,6]
[309975385,1704250250847,-44033.7453585,0.0003399,6]
[309975386,1704250250857,-500.0,0.00033996,2]
[309975387,1704250250867,-245.11230779,0.00033996,2]
[309975388,1704250250876,-164.84974056,0.00033996,2]
[309975389,1704250250885,-500.0,0.00033996,2]
[309975390,1704250250894,-500.0,0.00033996,2]
[309975391,1704250250903,-500.0,0.00033996,2]
[309975392,1704250250912,-500.0,0.00033996,2]
[309975393,1704250250922,-500.0,0.00033996,2]
[309975394,1704250250931,-535.31,0.00033996,2]
[309975395,1704250250940,-500.0,0.00033996,2]
[309975396,1704250250949,-406.11735792,0.00033997,2]
[309975397,1704250250958,-199.44873094,0.00033997,2]
[309975398,1704250250969,-545.75580158,0.00033997,2]
[309975399,1704250250978,-626.74177391,0.00033997,2]
[309975400,1704250250987,-500.0,0.00033997,2]
[309975401,1704250250997,-206.45186411,0.00033997,2]
[309975402,1704250251006,-216.8913827,0.00033997,2]
[309975403,1704250251015,-500.0,0.00033997,2]
[309975404,1704250251024,-216.32988042,0.00033997,2]
[309975405,1704250251034,-507.29937822,0.00033997,2]
[309975406,1704250251043,-473.29532595,0.00033997,2]
[309975407,1704250251052,-521.5,0.00033997,2]
[309975408,1704250251061,-500.0,0.00033997,2]
[309975409,1704250251071,-540.11719899,0.00033997,2]
[309975410,1704250251080,-500.0,0.00033997,2]
[309975411,1704250251090,-500.0,0.00033997,2]
[309975412,1704250251103,-500.0,0.00033997,2]
[309975413,1704250251117,-500.0,0.00033997,2]
[309975414,1704250251131,-500.0,0.00033997,2]
[309975415,1704250251145,-597.65080326,0.00033997,2]
[309975416,1704250251159,-500.0,0.00033997,2]
[309975417,1704250251170,-2722.94,0.00033997,2]
[309975418,1704250251181,-333.40103,0.00033998,2]
[309975419,1704250251194,-500.0,0.00033999,2]
[309975420,1704250251207,-500.0,0.00033999,2]
[309975421,1704250251220,-500.0,0.00033999,2]
[309975422,1704250251236,-837.8,0.00033999,2]
[309975423,1704250251253,-500.0,0.00033999,2]
[309975424,1704250251267,-664.8,0.00033999,2]
[309975425,1704250251280,-500.0,0.00033999,2]
[309975426,1704250251291,-500.0,0.00033999,2]
[309975427,1704250251303,-500.0,0.00033999,2]
[309975428,1704250251315,-500.0,0.00033999,2]
[309975429,1704250251328,-605.69,0.00033999,2]
[309975430,1704250251339,-1691.33,0.00033999,2]
[309975431,1704250251352,-500.0,0.00033999,2]
[309975432,1704250251364,-500.0,0.00033999,2]
[309975433,1704250251377,-803.97,0.00033999,2]
[309975434,1704250251390,-500.0,0.00033999,2]
[309975435,1704250251403,-500.0,0.00033999,2]
[309975436,1704250251414,-500.0,0.00033999,2]
[309975437,1704250251424,-67521.77998501,0.00034,5]
[309975438,1704250251435,-78770.71050221,0.00034,5]
[309975439,1704250251450,-1000.0,0.00034,4]
[309975440,1704250251462,-300.0,0.00034,35]
[309975441,1704250251474,-947.8821708,0.00034,7]
[309975442,1704250251487,-2021.11573,0.00034,2]
[309975443,1704250251499,-2361.759571,0.00034002,2]
[309975444,1704250251510,-672.0,0.00034057,2]
[309975445,1704250251522,-333.40103,0.00034098,2]
[309975446,1704250251534,-150.0,0.00034124,2]
[309975447,1704250251547,-150.0,0.00034147,2]
[309975448,1704250251559,-500.0,0.00034152,2]
[309975449,1704250251572,-196.88,0.00034156,2]
[309975450,1704250251584,-151.78,0.00034156,2]
[309975451,1704250251597,-167.6,0.00034156,2]
[309975452,1704250251609,-419.46,0.00034156,2]
[309975453,1704250251622,-520.27,0.00034156,2]
[309975454,1704250251632,-152.76,0.00034156,2]
[309975455,1704250251642,-406.92,0.00034156,2]
[309975456,1704250251652,-502.56,0.00034156,2]
[309975457,1704250251662,-520.27,0.00034156,2]
[309975458,1704250251673,-150.0,0.00034156,2]
[309975459,1704250251685,-416.72,0.00034156,2]
[309975460,1704250251697,-406.92,0.00034156,2]
[309975461,1704250251709,-520.27,0.00034156,2]
[309975462,1704250251721,-150.0,0.00034156,2]
[309975463,1704250251734,-416.72,0.00034156,2]
[309975464,1704250251746,-150.0,0.00034156,2]
[309975465,1704250251759,-520.27,0.00034156,2]
[309975466,1704250251771,-618.97,0.00034156,2]
[309975467,1704250251783,-313.33,0.00034156,2]
[309975468,1704250251794,-333.40103,0.00034198,2]
[309975469,1704250251805,-1996.0,0.000342,6]
[309975470,1704250251815,-160.57182686,0.00034234,6]
[309975471,1704250251826,-191.27,0.00034252,2]
[309975472,1704250251837,-161.0,0.0003427,2]
[309975473,1704250251849,-150.0,0.00034275,2]
[309975474,1704250251860,-150.0,0.00034279,2]
[309975475,1704250251872,-187.09,0.00034287,2]
[309975476,1704250251884,-333.40103,0.00034298,2]
[309975477,1704250251896,-153.84,0.000343,2]
[309975478,1704250251908,-150.03538347,0.00034308,2]
[309975479,1704250251920,-1000.0,0.00034325,7]
[309975480,1704250251931,-1000.0,0.00034325,7]
[309975481,1704250251943,-1000.0,0.00034325,7]
[309975482,1704250251956,-150.0,0.00034351,2]
[309975483,1704250251970,-150.0,0.0003436,2]
[309975484,1704250251981,-333.40103,0.00034398,2]
[309975485,1704250251995,-2361.759571,0.00034421,2]
[309975486,1704250252010,-333.40103,0.00034488,2]
[309975487,1704250252024,-333.40103,0.00034498,2]
[309975488,1704250252035,-255.15,0.00034498,4]
[309975489,1704250252046,-372.00614093,0.00034499,2]
[309975490,1704250252060,-187.88135805,0.00034499,2]
[309975491,1704250252070,-524.56893651,0.00034499,2]
[309975492,1704250252081,-500.0,0.00034499,2]
[309975493,1704250252093,-1720.88,0.00034499,2]
[309975494,1704250252104,-500.0,0.00034499,2]
[309975495,1704250252115,-500.0,0.00034499,2]
[309975496,1704250252125,-588.0,0.00034499,2]
[309975497,1704250252136,-500.0,0.00034499,2]
[309975498,1704250252149,-500.0,0.00034499,2]
[309975499,1704250252160,-500.0,0.00034499,2]
[309975500,1704250252171,-177.71128798,0.00034499,2]
[309975501,1704250252182,-500.0,0.00034499,2]
[309975502,1704250252193,-500.0,0.00034499,2]
[309975503,1704250252204,-500.0,0.00034499,2]
[309975504,1704250252216,-531.29923791,0.00034499,2]
[309975505,1704250252227,-1223.85,0.00034499,2]
[309975506,1704250252237,-500.0,0.00034499,2]
[309975507,1704250252249,-500.0,0.00034499,2]
[309975508,1704250252260,-500.0,0.00034499,2]
[309975509,1704250252270,-500.0,0.00034499,2]
[309975510,1704250252283,-500.0,0.00034499,2]
[309975511,1704250252294,-500.0,0.00034499,2]
[309975512,1704250252304,-500.0,0.00034499,2]
[309975513,1704250252315,-248.54079204,0.00034499,2]
[309975514,1704250252325,-2722.94,0.00034499,2]
[309975515,1704250252336,-500.0,0.00034499,2]
[309975516,1704250252347,-500.0,0.00034499,2]
[309975517,1704250252357,-535.31,0.00034499,2]
[309975518,1704250252368,-500.0,0.00034499,2]
[309975519,1704250252381,-277.0,0.000345,2]
[309975520,1704250252392,-65636.25192704,0.000345,7]
[309975521,1704250252404,-10724.0,0.000345,2]
[309975522,1704250252415,-2429.68521802,0.0003452,2]
[309975523,1704250258645,-462.4,0.00032634,2]
[309975524,1704250258654,-1395.01090998,0.0003452,2]
[309975525,1704250258665,-24748.014291,0.0003452,2]
[309975526,1704250258675,-2504.07462,0.0003452,2]
[309975527,1704250258685,-412.760066,0.0003452,2]
[309975528,1704250258694,-160.57182686,0.00034525,6]
[309975529,1704250258704,-150.0,0.00034547,2]
[309975530,1704250258714,-150.0,0.00034558,2]
[309975531,1704250258723,-150.0,0.00034562,2]
[309975532,1704250258733,-333.40103,0.00034578,2]
[309975533,1704250258742,-333.40103,0.00034588,2]
[309975534,1704250258751,-300.0,0.00034593,2]
[309975535,1704250258762,-333.40103,0.00034598,2]
[309975536,1704250258772,-1268.0,0.000346,4]
[309975537,1704250258782,-150.0,0.000346,2]
[309975538,1704250258791,-900.0,0.000346,12]
[309975539,1704250258801,-150.0,0.00034627,2]
[309975540,1704250258810,-150.0,0.00034629,2]
[309975541,1704250258820,-395.47959003,0.00034648,4]
[309975542,1704250258831,-500.0,0.00034649,2]
[309975543,1704250258840,-180.0,0.00034658,2]
[309975544,1704250258850,-333.40103,0.00034668,2]
[309975545,1704250258859,-333.40103,0.00034678,2]
[309975546,1704250258868,-500.0,0.00034678,2]
[309975547,1704250258878,-200.0,0.00034678,2]
[309975548,1704250258887,-333.40103,0.00034688,2]
[309975549,1704250258897,-150.0,0.00034693,2]
[309975550,1704250258907,-333.40103,0.00034698,2]
[309975551,1704250258917,-1200.0,0.000347,12]
[309975552,1704250258926,-500.0,0.00034707,2]
[309975553,1704250258938,-150.03538347,0.00034715,2]
[309975554,1704250258948,-150.0,0.00034716,2]
[309975555,1704250258958,-500.0,0.00034736,2]
[309975556,1704250258967,-150.0,0.00034736,2]
[309975557,1704250258979,-333.40103,0.00034768,2]
[309975558,1704250258989,-333.40103,0.00034778,2]
[309975559,1704250258999,-150.0,0.00034779,2]
[309975560,1704250259009,-333.40103,0.00034788,2]
[309975561,1704250259019,-300.0,0.00034792,2]
[309975562,1704250259029,-500.0,0.00034793,2]
[309975563,1704250259038,-837.8,0.00034793,2]
[309975564,1704250259049,-347.38,0.00034793,2]
[309975565,1704250259059,-664.8,0.00034793,2]
[309975566,1704250259068,-296.6651754,0.00034793,2]
[309975567,1704250259077,-500.0,0.00034793,2]
[309975568,1704250259088,-500.0,0.00034793,2]
[309975569,1704250259097,-500.0,0.00034793,2]
[309975570,1704250259107,-605.69,0.00034793,2]
[309975571,1704250259116,-1691.33,0.00034793,2]
[309975572,1704250259126,-500.0,0.00034793,2]
[309975573,1704250259135,-500.0,0.00034793,2]
[309975574,1704250259145,-803.97,0.00034793,2]
[309975575,1704250259154,-500.0,0.00034793,2]
[309975576,1704250259163,-500.0,0.00034793,2]
[309975577,1704250259173,-500.0,0.00034793,2]
[309975578,1704250259183,-5737.044192,0.00034794,2]
[309975579,1704250259193,-32059.0748463,0.00034794,2]
[309975580,1704250259404,-5062.9465897,0.00034794,2]
[309975581,1704250259414,-3756.111931,0.00034794,2]
[309975582,1704250259423,-619.1401,0.00034794,2]
[309975583,1704250259433,-333.40103,0.00034798,2]
[309975584,1704250259442,-500.0,0.00034799,2]
[309975585,1704250259451,-500.0,0.00034799,2]
[309975586,1704250259461,-1000.0,0.000348,2]
[309975587,1704250259474,-421.6082666,0.000348,2]
[309975588,1704250259483,-1500.0,0.000348,12]
[309975589,1704250259492,-2775.35700766,0.000348,2]
[309975590,1704250259503,-517.94922337,0.000348,2]
[309975591,1704250259513,-160.57182686,0.00034817,7]
[309975592,1704250259522,-150.0,0.00034823,2]
[309975593,1704250259531,-150.0,0.00034837,2]
[309975594,1704250259540,-2361.759571,0.00034841,2]
[309975595,1704250259550,-150.0,0.0003486,2]
[309975596,1704250259559,-150.0,0.00034861,2]
[309975597,1704250259568,-150.0,0.00034874,2]
[309975598,1704250259578,-333.40103,0.00034878,2]
[309975599,1704250259586,-150.0,0.00034878,2]
[309975600,1704250259595,-333.40103,0.00034888,2]
[309975601,1704250259605,-2583.7388514,0.00034895,2]
[309975602,1704250259614,-1558.8551344,0.00034895,2]
[309975603,1704250259624,-9837.52334429,0.00034895,2]
[309975604,1704250269740,449401.67805768,0.00023,2]
[309975605,1704250461599,12420.38425563,0.00022,2]
[309975672,1704251431586,-157.63053592,0.00022899,2]
[309975673,1704251431596,-300.0,0.00022899,2]
[309975674,1704251431605,-1279.63,0.000229,2]
[309975675,1704251431614,-570.10339428,0.000229,2]
[309975676,1704251431623,-188.10564756,0.000229,2]
[309975677,1704251431633,-378.85221317,0.000229,2]
[309975678,1704251431642,-1216.16109338,0.0002299,2]
[309975679,1704251431651,-11764.74128423,0.00023,2]
[309975680,1704251431662,-5250.0,0.00023,2]
[309975681,1704251431691,-940.98871087,0.00023,2]
[309975682,1704251431703,-2482.56641981,0.00023,2]
[309975683,1704251431851,-562878.43012892,0.00023,2]
[309975748,1704251437601,-6306.39554297,0.00023,2]
[309975749,1704251437616,-629.0661659,0.00023,2]
[309975750,1704251437629,-782.82599418,0.00023,2]
[309975751,1704251437641,-2712.07251592,0.00023,2]
[309975752,1704251437655,-3004.38690329,0.00023,2]